fUSD/lending_fUSD_20260401
["ID","MTS","AMOUNT","RATE_DAILY","PERIOD"]
[419176328,1775004655138,-500.0,0.000326,30]
[419176329,1775004655147,-626.03744746,0.000326,30]
[419176330,1775004655157,-150.0,0.000326,30]
[419176331,1775004655166,-207.75998939,0.000326,30]
[419176332,1775004655175,-699.0,0.000326,30]
[419176333,1775004655185,-699.50136327,0.000326,30]
[419176334,1775004655195,-1000.0,0.00032602,120]
[419176335,1775004655205,-500.0,0.00032603,30]
[419176336,1775004655216,-500.0,0.00032603,30]
[419176337,1775004655227,-500.0,0.00032603,30]
[419176338,1775004655236,-500.0,0.00032603,30]
[419176339,1775004655353,-500.0,0.00032603,30]
[419176340,1775004655362,-500.0,0.00032603,30]
[419176341,1775004655371,-500.0,0.00032603,30]
[419176342,1775004655380,-500.0,0.00032603,30]
[419176343,1775004655391,-500.0,0.00032603,30]
[419176344,1775004655400,-500.0,0.00032603,30]
[419176345,1775004655409,-500.0,0.00032603,30]
[419176346,1775004655418,-500.0,0.00032603,30]
[419176347,1775004655426,-500.0,0.00032603,30]
[419176348,1775004655436,-500.0,0.00032603,30]
[419176349,1775004655445,-500.0,0.00032603,30]
[419176350,1775004655454,-500.0,0.00032603,30]
[419176351,1775004655463,-500.0,0.00032603,30]
[419176352,1775004655472,-189.22216689,0.00032603,30]
[419176353,1775004655481,-156.13980161,0.00032603,30]
[419176354,1775004655490,-500.0,0.00032603,30]
[419176355,1775004655499,-500.0,0.00032603,30]
[419176356,1775004655508,-500.0,0.00032603,30]
[419176357,1775004655517,-500.0,0.00032603,30]
[419176358,1775004655527,-500.0,0.00032603,30]
[419176359,1775004655535,-500.0,0.00032603,30]
[419176360,1775004655544,-500.0,0.00032603,30]
[419176361,1775004655553,-500.0,0.00032603,30]
[419176362,1775004655562,-500.0,0.00032603,30]
[419176363,1775004655571,-500.0,0.00032603,30]
[419176364,1775004655580,-500.0,0.00032603,30]
[419176365,1775004655589,-505.41981536,0.00032603,30]
[419176366,1775004655598,-500.0,0.00032603,30]
[419176367,1775004655606,-500.0,0.00032603,30]
[419176368,1775004655617,-500.0,0.00032603,30]
[419176369,1775004655625,-500.0,0.00032603,30]
[419176370,1775004655634,-500.0,0.00032603,30]
[419176371,1775004655643,-500.0,0.00032603,30]
[419176372,1775004655652,-500.0,0.00032603,30]
[419176373,1775004655661,-462.65282226,0.00032603,30]
[419176374,1775004655670,-500.0,0.00032603,30]
[419176375,1775004655679,-500.0,0.00032603,30]
[419176376,1775004655687,-500.0,0.00032603,30]
[419176377,1775004655696,-500.0,0.00032603,30]
[419176378,1775004655705,-500.0,0.00032603,30]
[419176379,1775004655716,-500.0,0.00032603,30]
[419176380,1775004655725,-500.0,0.00032603,30]
[419176381,1775004655734,-500.0,0.00032603,30]
[419176382,1775004655743,-500.0,0.00032603,30]
[419176383,1775004655752,-500.0,0.00032603,30]
[419176384,1775004655761,-500.0,0.00032603,30]
[419176385,1775004655770,-500.0,0.00032603,30]
[419176386,1775004655780,-299.5230674,0.00032603,30]
[419176387,1775004655791,-500.0,0.00032603,30]
[419176388,1775004655800,-500.0,0.00032603,30]
[419176389,1775004655810,-500.0,0.00032603,30]
[419176390,1775004655821,-500.0,0.00032603,30]
[419176391,1775004655830,-500.0,0.00032603,30]
[419176392,1775004655839,-500.0,0.00032603,30]
[419176393,1775004655848,-526.45929112,0.00032603,30]
[419176394,1775004655856,-500.0,0.00032603,30]
[419176395,1775004655865,-500.0,0.00032603,30]
[419176396,1775004655875,-486.29760765,0.00032603,30]
[419176397,1775004655885,-500.0,0.00032603,2]
[419176398,1775004655895,-500.0,0.00032603,2]
[419176399,1775004655904,-283.19377857,0.00032603,2]
[419176400,1775004655914,-150.0,0.00032603,30]
[419176401,1775004655926,-150.0,0.00032603,30]
[419176402,1775004655935,-197.56744216,0.00032603,30]
[419176403,1775004655946,-500.0,0.00032603,30]
[419176404,1775004655955,-500.0,0.00032603,30]
[419176405,1775004655964,-500.0,0.00032603,30]
[419176406,1775004655973,-500.0,0.00032603,30]
[419176407,1775004655984,-498.54143302,0.00032603,30]
[419176408,1775004655993,-500.0,0.00032603,2]
[419176409,1775004656002,-500.0,0.00032603,2]
[419176410,1775004656011,-500.0,0.00032603,2]
[419176411,1775004656021,-500.0,0.00032603,2]
[419176412,1775004656030,-500.0,0.00032603,2]
[419176413,1775004656040,-500.0,0.00032603,2]
[419176414,1775004656050,-500.0,0.00032603,2]
[419176415,1775004656059,-500.0,0.00032603,2]
[419176416,1775004656068,-500.0,0.00032603,2]
[419176417,1775004656078,-637.65229483,0.00032603,2]
[419176418,1775004656087,-500.0,0.00032603,30]
[419176419,1775004656097,-500.0,0.00032603,30]
[419176420,1775004656106,-500.0,0.00032603,30]
[419176421,1775004656115,-500.0,0.00032603,30]
[419176422,1775004656125,-500.0,0.00032603,30]
[419176423,1775004656135,-500.0,0.00032603,30]
[419176424,1775004656144,-500.0,0.00032603,30]
[419176425,1775004656154,-500.0,0.00032603,30]
[419176426,1775004656163,-459.13495148,0.00032603,30]
[419176427,1775004656172,-500.0,0.00032603,30]
[419176428,1775004656182,-500.0,0.00032603,30]
[419176429,1775004656191,-500.0,0.00032603,30]
[419176430,1775004656200,-500.0,0.00032603,30]
[419176431,1775004656209,-500.0,0.00032603,30]
[419176432,1775004656218,-500.0,0.00032603,30]
[419176433,1775004656228,-500.0,0.00032603,30]
[419176434,1775004656238,-500.0,0.00032603,30]
[419176435,1775004656247,-500.0,0.00032603,30]
[419176436,1775004656258,-500.0,0.00032603,30]
[419176437,1775004656267,-500.0,0.00032603,30]
[419176438,1775004656276,-500.0,0.00032603,30]
[419176439,1775004656286,-436.48877466,0.00032603,30]
[419176440,1775004656296,-500.0,0.00032603,30]
[419176441,1775004656305,-500.0,0.00032603,30]
[419176442,1775004656316,-152.71046763,0.00032603,30]
[419176443,1775004656326,-500.0,0.00032603,30]
[419176444,1775004656336,-500.0,0.00032603,30]
[419176445,1775004656345,-500.0,0.00032603,30]
[419176446,1775004656357,-500.0,0.00032603,30]
[419176447,1775004656366,-500.0,0.00032603,30]
[419176448,1775004656376,-321.15185708,0.00032603,30]
[419176449,1775004656385,-150.0,0.00032603,2]
[419176450,1775004656394,-150.0,0.00032603,30]
[419176451,1775004656404,-500.0,0.00032603,30]
[419176452,1775004656414,-150.0,0.00032603,30]
[419176453,1775004656426,-500.0,0.00032603,30]
[419176454,1775004656435,-150.0,0.00032603,30]
[419176455,1775004656445,-500.0,0.00032603,30]
[419176456,1775004656458,-284.82782634,0.00032603,30]
[419176457,1775004656467,-158.71874995,0.00032603,30]
[419176458,1775004656476,-500.0,0.00032603,30]
[419176459,1775004656487,-500.0,0.00032603,30]
[419176460,1775004656496,-500.0,0.00032603,30]
[419176461,1775004656506,-500.0,0.00032603,30]
[419176462,1775004656515,-500.0,0.00032603,30]
[419176463,1775004656525,-500.0,0.00032603,30]
[419176464,1775004656535,-500.0,0.00032603,30]
[419176465,1775004656544,-159.58921436,0.00032603,30]
[419176466,1775004656555,-150.0,0.00032603,30]
[419176467,1775004656567,-500.0,0.00032603,30]
[419176468,1775004656576,-500.0,0.00032603,30]
[419176469,1775004656586,-150.0,0.00032603,30]
[419176470,1775004656596,-150.0,0.00032603,30]
[419176471,1775004656606,-163.20161962,0.00032603,30]
[419176472,1775004656616,-150.0,0.00032603,30]
[419176473,1775004656626,-189.5363432,0.00032603,30]
[419176474,1775004656635,-150.0,0.00032603,30]
[419176475,1775004656645,-150.0,0.00032603,30]
[419176476,1775004656654,-150.0,0.00032603,30]
[419176477,1775004656663,-150.0,0.00032603,30]
[419176478,1775004656673,-150.0,0.00032603,30]
[419176479,1775004656682,-164.92841658,0.00032603,30]
[419176480,1775004656692,-150.0,0.00032603,30]
[419176481,1775004656702,-217.21457939,0.00032603,30]
[419176482,1775004656711,-152.0,0.00032643,18]
[419176483,1775004656722,-200.0,0.000327,11]
[419176484,1775004656731,-290.24992442,0.000327,2]
[419176485,1775004656744,-290.24992441,0.000327,2]
[419176486,1775004656756,-290.24992441,0.000327,2]
[419176487,1775004656765,-290.24992441,0.000327,2]
[419176488,1775004656776,-290.24992441,0.000327,2]
[419176489,1775004656785,-290.24992441,0.000327,2]
[419176490,1775004656795,-290.24992441,0.000327,2]
[419176491,1775004656806,-290.24992441,0.000327,2]
[419176492,1775004656817,-290.24992441,0.000327,2]
[419176493,1775004656827,-290.24992441,0.000327,2]
[419176494,1775004656836,-290.24992441,0.000327,2]
[419176495,1775004656847,-290.24992441,0.000327,2]
[419176496,1775004656857,-290.24992441,0.000327,2]
[419176497,1775004656867,-290.24992441,0.000327,2]
[419176498,1775004656877,-290.24992441,0.000327,2]
[419176499,1775004656886,-290.24992441,0.000327,2]
[419176500,1775004656895,-290.24992441,0.000327,2]
[419176501,1775004656905,-290.24992441,0.000327,2]
[419176502,1775004656914,-290.24992441,0.000327,2]
[419176503,1775004656925,-290.24992441,0.000327,2]
[419176504,1775004656936,-800.0,0.00032726,21]
[419176505,1775004656946,-1000.0,0.00032755,120]
[419176506,1775004656955,-1000.0,0.0003278,120]
[419176507,1775004656965,-1000.0,0.0003278,120]
[419176508,1775004656974,-502.0,0.00032784,19]
[419176509,1775004656983,-200.0,0.000328,11]
[419176510,1775004656993,-1000.0,0.00032856,120]
[419176511,1775004657002,-1000.0,0.0003286,120]
[419176512,1775004657012,-1000.0,0.00032866,120]
[419176513,1775004657021,-1000.0,0.0003287,120]
[419176514,1775004657031,-1000.0,0.00032876,120]
[419176515,1775004657040,-235.99,0.00032877,2]
[419176516,1775004657049,-195.859238,0.00032877,7]
[419176517,1775004657071,-195.859238,0.00032877,7]
[419176518,1775004657081,-195.859238,0.00032877,7]
[419176519,1775004657090,-195.859238,0.00032877,7]
[419176520,1775004657100,-639.887019,0.00032877,7]
[419176521,1775004657110,-639.887019,0.00032877,7]
[419176522,1775004657119,-639.887019,0.00032877,7]
[419176523,1775004657129,-639.887019,0.00032877,7]
[419176524,1775004657139,-639.887019,0.00032877,7]
[419176525,1775004657149,-639.887019,0.00032877,7]
[419176526,1775004657158,-639.887019,0.00032877,7]
[419176527,1775004657168,-639.887019,0.00032877,7]
[419176528,1775004657178,-4589.596736,0.00032877,7]
[419176529,1775004657187,-4589.596736,0.00032877,7]
[419176530,1775004657197,-4589.596736,0.00032877,7]
[419176531,1775004657207,-4589.596736,0.00032877,7]
[419176532,1775004657216,-1000.0,0.00032877,120]
[419176533,1775004657226,-1012.82,0.00032885,120]
[419176534,1775004657235,-1000.0,0.000329,120]
[419176535,1775004657244,-27958.83,0.000329,2]
[419176536,1775004657255,-8583.25,0.000329,30]
[419176537,1775004657264,-1064.96795078,0.000329,2]
[419176538,1775004657276,-200.0,0.000329,12]
[419176539,1775004657285,-213.18798956,0.000329,2]
[419176540,1775004657296,-639.887019,0.000329,7]
[419176541,1775004657306,-639.887019,0.000329,7]
[419176542,1775004657318,-8579.06167556,0.000329,2]
[419176543,1775004657328,-639.887019,0.000329,7]
[419176544,1775004657339,-639.887019,0.000329,7]
[419176545,1775004657348,-2665.23016469,0.000329,2]
[419176546,1775004657359,-490.63411781,0.000329,2]
[419176547,1775004657368,-250.0,0.00032939,27]
[419176548,1775004657378,-1000.0,0.00032955,120]
[419176549,1775004657388,-1000.0,0.0003297,2]
[419176550,1775004657398,-250.000001,0.00032986,30]
[419176551,1775004657407,-882.7907463,0.0003299,2]
[419176552,1775004657418,-151.0,0.00032997,14]
[419176553,1775004657428,-1517226.84053092,0.00033,120]
[419176554,1775004658793,-1634.56082426,0.00033,120]
[419176555,1775004658811,-1000.0,0.00033,120]
[419176556,1775004658823,-631.57473228,0.00033,120]
[419176557,1775004658846,-825.0,0.00032163,60]
[419176558,1775004658856,-338.82136328,0.00033,120]
[419176559,1775004658989,-151.36,0.00011364,2]
[419176560,1775004658999,-150.0,0.0002,20]
[419176561,1775004659009,-347.72469749,0.00023149,2]
[419176562,1775004659412,-108.90000005,0.00016365,2]
[419176563,1775004659429,-401.09999995,0.00016365,2]
[419176564,1775004659442,-4.06896005,0.00023149,2]
[419176565,1775004659457,-863.48559937,0.00023149,2]
[419176566,1775004659473,-326.96830002,0.00023149,2]
[419176567,1775004659522,-320.89399997,0.00023149,2]
[419176568,1775004659542,-708.77,0.00023149,2]
[419176571,1775004745059,245.1707,0.000138,12]
[419176572,1775004817475,245.1391,0.000138,12]
[419176575,1775004953335,245.1074,0.000142,12]
[419176577,1775005025751,245.0757,0.000142,12]
[419176578,1775005097777,245.044,0.000138,12]
[419176579,1775005168989,245.0123,0.000138,12]
[419176583,1775005313335,244.9805,0.000138,12]
[419176594,1775005385263,244.9486,0.000138,12]
[419176596,1775005519842,244.9168,0.000133,12]
[419176597,1775005548760,1088.93,5.729e-05,2]
[419176598,1775005548963,1088.93,6.031e-05,2]
[419176599,1775005549173,1088.93,6.333e-05,2]
[419176600,1775005549407,1088.93,6.634e-05,2]
[419176601,1775005549637,1088.93,6.936e-05,2]
[419176602,1775005549851,1088.93,7.237e-05,2]
[419176603,1775005550047,1088.93,7.539e-05,2]
[419176604,1775005550554,914.41,7.84e-05,2]
[419176605,1775005550577,174.52,7.84e-05,2]
[419176606,1775005550789,1088.93,8.142e-05,2]
[419176607,1775005550965,1088.93,8.444e-05,2]
[419176608,1775005602657,1000.0,7.891e-05,2]
[419176609,1775005641101,-486.71035632,8.611e-05,2]
[419176610,1775005655516,244.8849,0.000127,12]
[419176611,1775005656030,312.8941,0.000141,17]
[419176612,1775005725185,1010.0,8.42e-05,2]
[419176613,1775005726917,244.8317,0.000127,12]
[419176614,1775005727117,312.7922,0.000141,17]
[419176615,1775005751631,-13.28964368,8.611e-05,2]
[419176616,1775005751652,-5000.0,8.678e-05,2]
[419176617,1775005751674,-250.0,8.678e-05,2]
[419176618,1775005751697,-1088.93,8.745e-05,2]
[419176619,1775005751718,-2084.58584902,8.966e-05,2]
[419176620,1775005751740,-1088.93,9.047e-05,2]
[419176621,1775005751762,-900.0,9.081e-05,2]
[419176622,1775005751783,-268.16472697,9.348e-05,2]
[419176623,1775005751804,-1088.93,9.348e-05,2]
[419176624,1775005751826,-1086.78,9.462e-05,2]
[419176625,1775005751847,-3057.77838241,9.473e-05,2]
[419176661,1775005833450,-228.63481586,9.461e-05,2]
[419176663,1775005833465,-199.25675492,9.467e-05,2]
[419176665,1775005833474,-150.0,9.467e-05,2]
[419176667,1775005833484,-1942.22161759,9.473e-05,2]
[419176669,1775005833494,-250.0,9.473e-05,2]
[419176671,1775005833504,-181128.53826876,9.5e-05,3]
[419176674,1775005833514,-150.0,9.5e-05,2]
[419176676,1775005833524,-176.89558659,9.5e-05,2]
[419176678,1775005833534,-1088.93,9.65e-05,2]
[419176680,1775005833544,-205.0,9.8e-05,2]
[419176682,1775005833554,-1200.0,9.928e-05,2]
[419176684,1775005833563,-300.0,9.928e-05,2]
[419176686,1775005833573,-732.6,9.929e-05,2]
[419176688,1775005833582,-50000.0,9.929e-05,2]
[419176690,1775005833592,-1088.93,9.951e-05,2]
[419176692,1775005833602,-1137.4,9.953e-05,2]
[419176694,1775005833611,-300.0,9.998e-05,2]
[419176695,1775005833621,-1200.0,9.999e-05,2]
[419176696,1775005833630,-414.64546776,0.0001,2]
[419176697,1775005833641,-449.0,0.00010104,2]
[419176698,1775005833651,-1852.42,0.00010133,2]
[419176699,1775005833660,-646.0,0.00010192,2]
[419176700,1775005833670,-366.0,0.00010213,2]
[419176701,1775005833679,-1088.93,0.00010253,2]
[419176702,1775005833689,-268.16472697,0.00010299,2]
[419176703,1775005833698,-885.0,0.00010342,2]
[419176704,1775005833708,-711.0,0.00010396,2]
[419176705,1775005833717,-250.0,0.00010407,2]
[419176706,1775005833727,-384.70089177,0.00010497,2]
[419176707,1775005833736,-1088.93,0.00010554,2]
[419176708,1775005833746,-166.05357121,0.00010573,2]
[419176709,1775005833756,-500.0,0.00010573,2]
[419176710,1775005833766,-500.0,0.00010573,2]
[419176711,1775005833776,-500.0,0.00010573,2]
[419176712,1775005833785,-160.34120415,0.00010573,2]
[419176713,1775005833795,-632.25827644,0.00010573,2]
[419176714,1775005833805,-150.0,0.0001059,2]
[419176715,1775005833815,-151.0,0.00010591,2]
[419176716,1775005833826,-151.0,0.00010591,2]
[419176717,1775005833836,-151.0,0.00010591,2]
[419176718,1775005833846,-151.0,0.00010591,2]
[419176719,1775005833857,-151.0,0.00010591,2]
[419176720,1775005833867,-151.0,0.00010591,2]
[419176721,1775005833878,-151.0,0.00010591,2]
[419176722,1775005833888,-151.0,0.00010591,2]
[419176723,1775005833899,-151.0,0.00010591,2]
[419176724,1775005833909,-151.0,0.00010591,2]
[419176725,1775005833920,-151.0,0.00010591,2]
[419176726,1775005833930,-151.0,0.00010591,2]
[419176727,1775005833940,-151.0,0.00010591,2]
[419176728,1775005833951,-33014.1242,0.00010597,2]
[419176729,1775005833963,-1000.0,0.00010597,2]
[419176730,1775005833972,-1088.93,0.00010856,2]
[419176731,1775005833983,-1680.0,0.00010921,2]
[419176732,1775005833992,-420.0,0.00010998,2]
[419176733,1775005834002,-646.0,0.00010999,2]
[419176734,1775005834012,-315.25837513,0.00011121,2]
[419176735,1775005834023,-500.0,0.0001115,2]
[419176736,1775005834035,-500.0,0.0001115,2]
[419176737,1775005834046,-500.0,0.0001115,2]
[419176738,1775005834056,-1088.93,0.00011158,2]
[419176739,1775005834067,-500.0,0.000112,2]
[419176740,1775005834077,-500.0,0.000112,2]
[419176741,1775005834088,-500.0,0.000112,2]
[419176742,1775005834098,-1942.30942383,0.0001125,2]
[419176743,1775005834111,-151.0,0.00011275,2]
[419176744,1775005834122,-151.0,0.00011293,2]
[419176745,1775005834132,-268.16472697,0.0001135,2]
[419176746,1775005834142,-250.0,0.00011379,2]
[419176747,1775005834151,-500.0,0.00011424,2]
[419176748,1775005834162,-500.0,0.0001145,2]
[419176749,1775005834171,-1088.93,0.00011459,2]
[419176750,1775005834180,-255.0,0.00011617,2]
[419176751,1775005834190,-1887.71,0.00011629,2]
[419176752,1775005834200,-500.0,0.00011698,2]
[419176753,1775005834210,-602.47944881,0.00011748,2]
[419176754,1775005834220,-500.0,0.00011748,2]
[419176755,1775005834231,-1500.0,0.00011873,2]
[419176756,1775005834243,-2351.0,0.00012013,2]
[419176757,1775005834253,-500.0,0.00012072,2]
[419176758,1775005834263,-587.0,0.00012098,2]
[419176759,1775005834273,-12481.85,0.00012195,2]
[419176760,1775005834283,-150.0,0.0001223,2]
[419176761,1775005834296,-150.0,0.0001223,2]
[419176762,1775005834307,-150.0,0.0001223,2]
[419176763,1775005834316,-150.0,0.0001223,2]
[419176764,1775005834327,-150.0,0.0001223,2]
[419176765,1775005834336,-150.0,0.0001223,2]
[419176766,1775005834346,-150.0,0.0001223,2]
[419176767,1775005834355,-150.0,0.0001257,2]
[419176768,1775005834365,-150.0,0.00012683,2]
[419176769,1775005834374,-150.0,0.00012683,2]
[419176770,1775005834383,-150.0,0.00012683,2]
[419176771,1775005834393,-150.0,0.00012683,2]
[419176772,1775005834402,-150.0,0.0001291,2]
[419176773,1775005834412,-150.0,0.0001291,2]
[419176774,1775005834422,-503.0,0.00013111,2]
[419176775,1775005834432,-150.0,0.00013136,2]
[419176776,1775005834443,-150.0,0.00013136,2]
[419176777,1775005834454,-150.0,0.00013136,2]
[419176778,1775005834465,-150.0,0.00013136,2]
[419176779,1775005834475,-150.0,0.00013249,2]
[419176780,1775005834484,-313.0,0.00013307,2]
[419176781,1775005834494,-877.938,0.00013497,2]
[419176782,1775005834503,-2500.0,0.00013498,2]
[419176783,1775005834928,-500.75688272,0.00013573,2]
[419176784,1775005834967,-500.0,0.00013573,2]
[419176785,1775005834976,-500.0,0.00013573,2]
[419176786,1775005834986,-500.0,0.00013573,2]
[419176787,1775005834995,-387.01212379,0.00013588,2]
[419176788,1775005835005,-150.0,0.00013589,2]
[419176789,1775005835015,-150.0,0.00013589,2]
[419176790,1775005835024,-150.0,0.00013589,2]
[419176791,1775005835034,-150.0,0.00013589,2]
[419176792,1775005835044,-150.0,0.00013589,2]
[419176793,1775005835054,-150.0,0.00013589,2]
[419176794,1775005835065,-500.0,0.00013595,2]
[419176795,1775005835075,-434.346871,0.00013595,2]
[419176796,1775005835085,-389.70777833,0.00013595,2]
[419176797,1775005835096,-377.06347033,0.00013595,2]
[419176798,1775005835106,-500.0,0.00013595,2]
[419176799,1775005835116,-515.20681448,0.00013595,2]
[419176800,1775005835126,-500.0,0.00013595,2]
[419176801,1775005835137,-500.0,0.00013595,2]
[419176802,1775005835147,-500.0,0.00013595,2]
[419176803,1775005835156,-500.0,0.00013595,2]
[419176804,1775005835166,-500.0,0.00013595,2]
[419176805,1775005835177,-500.0,0.00013595,2]
[419176806,1775005835188,-500.0,0.00013595,2]
[419176807,1775005835199,-500.0,0.00013595,2]
[419176808,1775005835208,-500.0,0.00013595,2]
[419176809,1775005835218,-500.0,0.00013595,2]
[419176810,1775005835227,-500.0,0.00013595,2]
[419176811,1775005835236,-500.0,0.00013595,2]
[419176812,1775005835246,-500.0,0.00013595,2]
[419176813,1775005835255,-500.0,0.00013595,2]
[419176814,1775005835265,-500.0,0.00013595,2]
[419176815,1775005835275,-500.0,0.00013595,2]
[419176816,1775005835285,-500.0,0.00013595,2]
[419176817,1775005835294,-590.40725299,0.00013595,2]
[419176818,1775005835303,-500.0,0.00013595,2]
[419176819,1775005835313,-500.0,0.00013595,2]
[419176820,1775005835322,-500.0,0.00013595,2]
[419176821,1775005835333,-500.0,0.00013595,2]
[419176822,1775005835343,-500.0,0.00013595,2]
[419176823,1775005835353,-500.0,0.00013595,2]
[419176824,1775005835362,-500.0,0.00013595,2]
[419176825,1775005835371,-500.0,0.00013595,2]
[419176826,1775005835381,-500.0,0.00013595,2]
[419176827,1775005835391,-500.0,0.00013595,2]
[419176828,1775005835400,-500.0,0.00013595,2]
[419176829,1775005835410,-500.0,0.00013595,2]
[419176830,1775005835420,-500.0,0.00013595,2]
[419176831,1775005835429,-500.0,0.00013595,2]
[419176832,1775005835439,-500.0,0.00013595,2]
[419176833,1775005835448,-500.0,0.00013595,2]
[419176834,1775005835457,-500.0,0.00013595,2]
[419176835,1775005835467,-500.0,0.00013595,2]
[419176836,1775005835476,-500.0,0.00013595,2]
[419176837,1775005835486,-500.0,0.00013595,2]
[419176838,1775005835495,-500.0,0.00013595,2]
[419176839,1775005835505,-500.0,0.00013595,2]
[419176840,1775005835514,-500.0,0.00013595,2]
[419176841,1775005835523,-500.0,0.00013595,2]
[419176842,1775005835533,-500.0,0.00013595,2]
[419176843,1775005835542,-500.0,0.00013595,2]
[419176844,1775005835552,-500.0,0.00013595,2]
[419176845,1775005835561,-500.0,0.00013595,2]
[419176846,1775005835571,-500.0,0.00013595,2]
[419176847,1775005835580,-500.0,0.00013595,2]
[419176848,1775005835589,-500.0,0.00013595,2]
[419176849,1775005835599,-500.0,0.00013595,2]
[419176850,1775005835608,-500.0,0.00013595,2]
[419176851,1775005835618,-500.0,0.00013595,2]
[419176852,1775005835628,-500.0,0.00013595,2]
[419176853,1775005835638,-500.0,0.00013595,2]
[419176854,1775005835647,-500.0,0.00013595,2]
[419176855,1775005835656,-500.0,0.00013595,2]
[419176856,1775005835665,-476.05728689,0.00013595,2]
[419176857,1775005835675,-500.0,0.00013595,2]
[419176858,1775005835685,-500.0,0.00013595,2]
[419176859,1775005835694,-500.0,0.00013595,2]
[419176860,1775005835703,-500.0,0.00013595,2]
[419176861,1775005835712,-500.0,0.00013595,2]
[419176862,1775005835722,-500.0,0.00013595,2]
[419176863,1775005835731,-500.0,0.00013595,2]
[419176864,1775005835741,-500.0,0.00013595,2]
[419176865,1775005835750,-500.0,0.00013595,2]
[419176866,1775005835760,-500.0,0.00013595,2]
[419176867,1775005835770,-500.0,0.00013595,2]
[419176868,1775005835779,-500.0,0.00013595,2]
[419176869,1775005835789,-500.0,0.00013595,2]
[419176870,1775005835799,-500.0,0.00013595,2]
[419176871,1775005835809,-500.0,0.00013595,2]
[419176872,1775005835818,-500.0,0.00013595,2]
[419176873,1775005835828,-500.0,0.00013595,2]
[419176874,1775005835838,-500.0,0.00013595,2]
[419176875,1775005835848,-500.0,0.00013595,2]
[419176876,1775005835858,-500.0,0.00013595,2]
[419176877,1775005835868,-500.0,0.00013595,2]
[419176878,1775005835877,-500.0,0.00013595,2]
[419176879,1775005835887,-500.0,0.00013595,2]
[419176880,1775005835896,-500.0,0.00013595,2]
[419176881,1775005835905,-500.0,0.00013595,2]
[419176882,1775005835915,-413.47191411,0.00013597,2]
[419176883,1775005835924,-500.0,0.00013597,2]
[419176884,1775005835934,-500.0,0.00013597,2]
[419176885,1775005835943,-500.0,0.00013597,2]
[419176886,1775005835952,-500.0,0.00013597,2]
[419176887,1775005835962,-474.47237051,0.00013597,2]
[419176888,1775005835971,-190452.41761024,0.00013598,2]
[419176889,1775005835986,-206401.62719131,0.00013598,2]
[419176890,1775005835997,-228108.52445649,0.00013598,2]
[419176891,1775005836008,-348836.83443876,0.00013598,2]
[419176892,1775005836020,-1254.41808677,0.00013598,2]
[419176893,1775005836131,-502.83044519,0.00013598,2]
[419176894,1775005837899,-776.92447833,0.00013598,2]
[419176895,1775005837910,-1756.9566773,0.00013598,2]
[419176896,1775005837941,-2324.28239026,0.00013598,2]
[419176897,1775005837997,-201011.77767824,0.00013598,2]
[419176898,1775005838105,-2859.38408532,0.00013598,2]